bitfinex/quotes_SOLUSD_20251018
["timestamp","ask_amount","ask_price","bid_price","bid_amount"]
[1760752190310,0.69,184.49,184.44,5.4217414]
[1760752190522,0.69,184.49,184.45,0.7]
[1760752190523,3.17860634,184.48,184.45,0.7]
[1760752190826,3.17860634,184.48,184.46,0.7]
[1760752192625,3.17860634,184.48,184.45,5.42147098]
[1760752192831,3.17860634,184.48,184.45,6.12147098]
[1760752193037,3.86860634,184.48,184.45,6.12147098]
[1760752193736,22.88,184.54,184.46,0.28432314]
[1760752193920,0.69,184.51,184.46,52.68432314]
[1760752194237,3.86860634,184.51,184.47,0.7]
[1760752194717,3.17860634,184.5,184.47,0.7]
[1760752195029,3.86860634,184.5,184.47,52.4]
[1760752195442,3.86860634,184.5,184.47,57.82068687]
[1760752196514,3.17860634,184.51,184.47,57.12068687]
[1760752196812,3.86860634,184.51,184.48,6.12063006]
[1760752197009,3.86860634,184.51,184.48,5.42063006]
[1760752198035,3.17860634,184.51,184.48,5.42063006]
[1760752198234,0.69,184.5,184.48,5.42063006]
[1760752199946,3.17860634,184.51,184.49,0.7]
[1760752200122,3.86860634,184.51,184.48,5.42063006]
[1760752200639,3.86860634,184.51,184.48,57.12063006]
[1760752201631,3.17860634,184.49,184.48,51.7]
[1760752201835,3.86860634,184.49,184.48,51.7]
[1760752202451,3.17860634,184.51,184.48,0.7]
[1760752202746,3.17860634,184.5,184.47,0.7]
[1760752203336,3.17860634,184.5,184.48,0.7]
[1760752203646,3.17860634,184.52,184.48,0.7]
[1760752203843,3.84860634,184.52,184.48,0.7]
[1760752204347,3.17860634,184.52,184.48,0.7]
[1760752204546,0.67,184.51,184.48,0.7]
[1760752205047,3.17860634,184.52,184.48,6.12052538]
[1760752205252,3.84860634,184.52,184.48,6.12052538]
[1760752205544,0.67,184.51,184.48,6.12052538]
[1760752205742,3.84860634,184.52,184.48,6.12052538]
[1760752206736,3.84860634,184.52,184.48,0.7]
[1760752207047,3.84860634,184.52,184.49,0.71]
[1760752208651,3.84860634,184.52,184.48,6.09055246]
[1760752209148,3.84860634,184.52,184.49,0.67]
[1760752209337,3.84860634,184.52,184.48,6.09055246]
[1760752209540,3.88860634,184.54,184.49,1.21203479]
[1760752209739,3.88860634,184.54,184.5,0.67]
[1760752209945,3.17860634,184.54,184.51,0.67]
[1760752210153,3.17860634,184.54,184.52,0.67]
[1760752210546,3.88860634,184.54,184.5,0.67]
[1760752210851,3.88860634,184.54,184.51,0.67]
[1760752211056,0.71,184.54,184.51,0.67]
[1760752211747,3.88860634,184.54,184.51,0.67]
[1760752213026,3.88860634,184.54,184.5,5.4200542]
[1760752213251,3.88860634,184.54,184.5,6.0900542]
[1760752213449,3.17860634,184.51,184.49,5.96208899]
[1760752213653,3.88860634,184.5,184.46,51.7]
[1760752213850,3.17860634,184.49,184.46,0.67]
[1760752214168,3.17860634,184.49,184.44,5.42181739]
[1760752214169,3.17860634,184.5,184.47,0.67]
[1760752214334,3.88860634,184.5,184.47,0.67]
[1760752214657,3.17860634,184.5,184.45,0.67]
[1760752214958,3.88860634,184.5,184.46,0.67]
[1760752215138,3.17860634,184.51,184.46,6.6331136]
[1760752215330,3.17860634,184.51,184.47,0.67]
[1760752215557,3.88860634,184.51,184.47,0.67]
[1760752215856,3.88860634,184.51,184.48,0.67]
[1760752216243,3.88860634,184.5,184.46,71.34406448]
[1760752216551,3.17860634,184.5,184.47,0.67]
[1760752216754,3.17860634,184.51,184.47,0.67]
[1760752217159,3.17860634,184.52,184.48,0.67]
[1760752217660,3.88860634,184.52,184.48,0.67]
[1760752217847,3.17860634,184.52,184.48,0.67]
[1760752218028,3.88860634,184.52,184.48,0.67]
[1760752218851,3.17860634,184.53,184.49,0.67]
[1760752219044,0.71,184.53,184.49,0.67]
[1760752219246,0.71,184.53,184.5,5.4200542]
[1760752219446,3.17860634,184.54,184.51,0.67]
[1760752219647,3.17860634,184.52,184.49,51.7]
[1760752219838,3.88860634,184.52,184.49,51.7]
[1760752220758,3.88860634,184.52,184.49,57.1203397]
[1760752222559,0.71,184.52,184.49,57.1203397]
[1760752223055,3.17860634,184.54,184.5,0.67]
[1760752223234,3.17860634,184.55,184.51,0.67]
[1760752223546,0.71,184.54,184.5,0.67]
[1760752224844,0.71,184.54,184.51,5.41976044]
[1760752226167,0.71,184.54,184.5,6.0900542]
[1760752226372,0.71,184.53,184.49,51.7]
[1760752226549,3.88860634,184.53,184.49,57.12033489]
[1760752226743,3.17860634,184.54,184.5,0.67]
[1760752226943,3.88860634,184.54,184.51,0.67]
[1760752228263,3.88860634,184.54,184.51,6.08960318]
[1760752228464,3.88860634,184.54,184.51,5.41960318]
[1760752228644,0.71,184.54,184.51,5.41960318]
[1760752228947,3.88860634,184.54,184.51,5.41960318]
[1760752230066,3.17860634,184.52,184.49,51.7]
[1760752230266,3.88860634,184.51,184.48,5.42057077]
[1760752230464,0.71,184.5,184.48,57.12057077]
[1760752231968,3.17860634,184.51,184.48,57.12057077]
[1760752232262,3.17860634,184.53,184.49,0.67]
[1760752232462,3.17860634,184.54,184.5,0.67]
[1760752232775,3.17860634,184.54,184.51,0.67]
[1760752233674,3.17860634,184.54,184.51,6.08961429]
[1760752234275,3.88860634,184.54,184.51,6.08961429]
[1760752235166,3.17860634,184.54,184.51,6.08961429]
[1760752235472,3.17860634,184.54,184.5,51.7]
[1760752235772,0.71,184.53,184.5,51.7]
[1760752235979,22.88,184.56,184.51,0.67]
[1760752236272,3.17860634,184.54,184.51,52.37]
[1760752236573,3.88860634,184.54,184.51,52.37]
[1760752236985,3.17860634,184.53,184.51,51.7]
[1760752237376,2.03411579,184.53,184.51,51.7]
[1760752237764,2.74411579,184.53,184.51,51.7]
[1760752238178,2.03411579,184.53,184.51,51.7]
[1760752238659,2.03411579,184.53,184.51,52.38]
[1760752240259,22.88,184.56,184.52,0.68]
[1760752240483,2.03411579,184.55,184.52,0.68]
[1760752240672,2.69411579,184.55,184.51,57.11961135]
[1760752240875,2.69411579,184.55,184.51,52.38]
[1760752241078,2.69411579,184.55,184.51,57.79971465]
[1760752241255,2.03411579,184.55,184.51,57.79971465]
[1760752241453,2.69411579,184.54,184.51,51.7]
[1760752241672,2.03411579,184.52,184.51,51.7]
[1760752242003,2.69411579,184.52,184.48,52.38]
[1760752242182,2.03411579,184.53,184.49,6.10031643]
[1760752242378,2.69411579,184.53,184.49,5.42031643]
[1760752242580,2.69411579,184.53,184.5,0.68]
[1760752243177,2.69411579,184.53,184.5,6.09998482]
[1760752243178,2.03411579,184.53,184.5,6.09998482]
[1760752244979,2.69411579,184.53,184.49,5.42032022]
[1760752245178,0.66,184.52,184.49,5.42032022]
[1760752245377,0.66,184.52,184.49,6.10032022]
[1760752246190,2.69411579,184.52,184.49,5.42032022]
[1760752246484,2.03411579,184.52,184.48,57.80058855]
[1760752246781,2.69411579,184.51,184.48,51.7]
[1760752246982,2.03411579,184.51,184.48,51.7]
[1760752247279,2.69411579,184.51,184.48,51.7]
[1760752247491,2.69411579,184.51,184.48,52.38]
[1760752249665,2.03411579,184.5,184.48,52.38]
[1760752250392,2.69411579,184.49,184.48,51.7]
[1760752253982,2.69411579,184.49,184.45,57.12145487]
[1760752254183,2.03411579,184.47,184.45,57.12145487]
[1760752254372,2.03411579,184.46,184.45,52.38]
[1760752255667,22.88,184.53,184.45,52.38]
[1760752255868,2.03411579,184.47,184.45,52.38]
[1760752257017,0.66,184.49,184.45,52.38]
[1760752257173,2.03411579,184.47,184.45,52.38]
[1760752257991,28.29930597,184.53,184.46,0.68]
[1760752258179,0.66,184.52,184.46,52.38]
[1760752258381,2.03411579,184.47,184.46,52.38]
[1760752258891,2.03411579,184.5,184.46,57.80122953]
[1760752259071,2.03411579,184.51,184.47,0.68]
[1760752259272,2.03411579,184.5,184.47,0.68]
[1760752259995,2.03411579,184.5,184.48,5.4206418]
[1760752260195,2.03411579,184.5,184.49,0.68]
[1760752262512,0.66,184.53,184.49,0.68]
[1760752262722,2.03411579,184.51,184.49,0.68]
[1760752263094,2.03411579,184.52,184.49,0.68]
[1760752263495,2.68411579,184.52,184.49,0.68]
[1760752263999,13.55409598,184.59,184.49,6.10019073]
[1760752264188,2.03411579,184.54,184.5,6.12996274]
[1760752264387,2.03411579,184.54,184.51,0.71]
[1760752265293,2.03411579,184.54,184.52,0.71]
[1760752265494,2.03411579,184.54,184.51,0.71]
[1760752265994,2.03411579,184.54,184.52,0.71]
[1760752266394,2.68411579,184.53,184.49,5.42034798]
[1760752266594,2.03411579,184.53,184.5,0.71]
[1760752267507,2.03411579,184.53,184.5,6.13002605]
[1760752267817,2.03411579,184.54,184.51,0.69]
[1760752268607,2.03411579,184.54,184.49,5.42034798]
[1760752268815,2.73411579,184.54,184.5,0.69]
[1760752269819,2.73411579,184.54,184.49,5.42034798]
[1760752270020,2.73411579,184.54,184.51,0.69]
[1760752270409,2.73411579,184.54,184.5,6.11003547]
[1760752270597,2.03411579,184.53,184.5,0.69]
[1760752271094,2.03411579,184.54,184.51,0.69]
[1760752271306,2.73411579,184.54,184.51,0.69]
[1760752272113,2.73411579,184.54,184.5,6.11001899]
[1760752272698,2.73411579,184.54,184.51,0.69]
[1760752273812,22.88,184.56,184.51,0.69]
[1760752273813,2.03411579,184.55,184.51,0.69]
[1760752274017,2.73411579,184.55,184.52,0.69]
[1760752274400,2.73411579,184.55,184.51,6.10967371]
[1760752274598,0.7,184.54,184.51,57.80967371]
[1760752275515,0.7,184.54,184.51,57.11967371]
[1760752275709,0.7,184.54,184.51,57.80967371]
[1760752276219,2.03411579,184.55,184.51,5.41967371]
[1760752276412,2.03411579,184.55,184.52,0.69]
[1760752276922,2.73411579,184.55,184.52,0.69]
[1760752280126,2.73411579,184.55,184.51,5.41967371]
[1760752280329,2.73411579,184.55,184.51,6.10967371]
[1760752281324,2.03411579,184.56,184.51,6.10967371]
[1760752281629,0.7,184.55,184.51,6.10967371]
[1760752283936,0.7,184.55,184.52,0.69]
[1760752284224,2.73411579,184.55,184.52,0.69]
[1760752284811,0.7,184.55,184.52,5.41946672]
[1760752285423,2.73411579,184.55,184.52,5.41946672]
[1760752285824,2.73411579,184.55,184.52,6.10946672]
[1760752286536,2.73411579,184.55,184.52,57.80946672]
[1760752288841,2.03411579,184.56,184.52,57.11946672]
[1760752289018,2.73411579,184.56,184.52,57.11946672]
[1760752289214,2.03411579,184.57,184.53,6.10912615]
[1760752289426,2.03411579,184.57,184.54,0.69]
[1760752289427,2.73411579,184.57,184.54,0.69]
[1760752289635,4.23310464,184.63,184.55,0.69]
[1760752289832,2.73411579,184.59,184.55,52.39]
[1760752290219,2.03411579,184.59,184.56,0.69]
[1760752290410,2.73411579,184.59,184.56,0.69]
[1760752290616,2.73411579,184.59,184.55,51.7]
[1760752290935,2.73411579,184.59,184.55,52.39]
[1760752291834,2.03411579,184.59,184.56,0.69]
[1760752292936,2.03411579,184.59,184.57,0.69]
[1760752293738,2.03411579,184.59,184.56,6.10821157]
[1760752294550,2.03411579,184.59,184.57,0.69]
[1760752295119,2.03411579,184.59,184.56,5.41821157]
[1760752295326,2.03411579,184.59,184.56,57.80821157]
[1760752295635,2.73411579,184.59,184.56,57.80821157]
[1760752296233,2.73411579,184.59,184.53,0.5419173]
[1760752296234,2.03411579,184.6,184.57,6.10798141]
[1760752296538,22.15776035,184.68,184.58,0.69]
[1760752296539,2.03411579,184.62,184.58,0.69]
[1760752296909,2.03411579,184.62,184.59,0.69]
[1760752297111,2.03411579,184.62,184.6,0.69]
[1760752297314,22.88,184.65,184.6,0.69]
[1760752297315,2.03411579,184.64,184.6,0.69]
[1760752297617,2.73411579,184.64,184.61,0.69]
[1760752298135,2.03411579,184.64,184.61,0.69]
[1760752298533,2.03411579,184.64,184.61,6.10673553]
[1760752298740,2.69411579,184.65,184.61,6.10673553]
[1760752299036,2.69411579,184.65,184.61,5.41673553]
[1760752299226,2.69411579,184.65,184.62,0.69]
[1760752299430,0.66,184.67,184.63,0.69]
[1760752299623,0.2,184.68,184.62,0.54165312]
[1760752299624,3.17409988,184.66,184.64,0.69]
[1760752299825,3.17409988,184.67,184.64,0.69]
[1760752300235,0.2,184.68,184.65,0.69]
[1760752300538,3.83409988,184.67,184.63,0.69]
[1760752300735,3.83409988,184.67,184.63,6.10620933]
[1760752300948,3.17409988,184.64,184.61,2.71364781]
[1760752301129,3.83409988,184.63,184.59,6.10717574]
[1760752301638,3.83409988,184.63,184.6,0.69]
[1760752302058,0.66,184.63,184.6,0.69]
[1760752303147,0.66,184.63,184.6,6.1070776]
[1760752304244,3.83409988,184.63,184.6,6.1070776]
[1760752304440,3.17409988,184.63,184.6,6.1070776]
[1760752304625,3.17409988,184.63,184.6,0.69]
[1760752305028,3.83409988,184.64,184.6,0.69]
[1760752305226,3.83409988,184.64,184.61,0.69]
[1760752305431,0.66,184.64,184.61,0.69]
[1760752305627,3.17409988,184.64,184.61,0.69]
[1760752305833,0.66,184.66,184.62,0.69]
[1760752306043,3.83409988,184.66,184.62,0.69]
[1760752306835,3.83409988,184.65,184.62,0.69]
[1760752307018,3.83409988,184.65,184.62,52.39]
[1760752307553,0.66,184.65,184.62,52.39]
[1760752307731,3.83409988,184.65,184.62,52.39]
[1760752308038,3.17409988,184.64,184.62,51.7]
[1760752308349,3.83409988,184.63,184.62,51.7]
[1760752308938,3.17409988,184.63,184.62,51.7]
[1760752309124,3.17409988,184.64,184.62,51.7]
[1760752309332,3.17409988,184.64,184.62,52.39]
[1760752310624,3.17409988,184.64,184.62,57.11641806]
[1760752310828,3.17409988,184.65,184.63,0.69]
[1760752311049,3.17409988,184.65,184.63,52.39]
[1760752311427,3.83409988,184.66,184.63,52.39]
[1760752312347,3.17409988,184.66,184.63,57.80616295]
[1760752312531,3.17409988,184.66,184.64,0.69]
[1760752313040,3.17409988,184.66,184.63,57.11616295]
[1760752313248,3.83409988,184.66,184.63,57.80616295]
[1760752313627,0.86,184.68,184.64,0.69]
[1760752313827,3.17409988,184.66,184.64,0.69]
[1760752314440,3.17409988,184.66,184.63,57.80616295]
[1760752315944,3.83409988,184.67,184.63,57.80616295]
[1760752317250,0.66,184.66,184.63,57.80616295]
[1760752317454,3.83409988,184.65,184.63,51.7]
[1760752317651,0.66,184.64,184.63,51.7]
[1760752318135,3.83409988,184.64,184.63,51.7]
[1760752320251,3.17409988,184.64,184.63,51.7]
[1760752320457,3.17409988,184.65,184.63,52.39]
[1760752320838,3.83409988,184.65,184.63,51.7]
[1760752321157,22.88,184.67,184.64,0.69]
[1760752321459,3.83409988,184.66,184.62,5.41646993]
[1760752321669,23.08,184.68,184.63,0.69]
[1760752321861,0.2,184.68,184.64,0.54159445]
[1760752322046,0.2,184.68,184.66,5.41535795]
[1760752322363,0.2,184.68,184.67,1.23150647]
[1760752322548,0.2,184.68,184.67,0.69]
[1760752322937,0.2,184.68,184.67,0.97432314]
[1760752323363,0.2,184.68,184.67,52.67432314]
[1760752324144,0.2,184.68,184.67,58.08938785]
[1760752326339,0.2,184.69,184.67,85.52938785]
[1760752326553,0.2,184.69,184.68,1.49580028]
[1760752326756,0.2,184.71,184.68,1.49580028]
[1760752326958,1e-08,184.71,184.7,22.88]
[1760752327274,0.2,184.73,184.72,0.28432314]
[1760752327444,0.2,184.73,184.72,53.19568303]
[1760752328257,0.2,184.73,184.72,58.60928199]
[1760752329068,0.2,184.73,184.72,6.90928199]
[1760752331368,0.2,184.73,184.72,9.07959749]
[1760752337958,0.2,184.73,184.72,9.12959749]
[1760752338978,0.87,184.73,184.72,8.12527435]
[1760752339378,0.87,184.73,184.72,8.40959749]
[1760752339676,0.87,184.73,184.72,60.10959749]
[1760752339677,0.2,184.73,184.72,60.10959749]
[1760752340975,0.87,184.73,184.72,60.10959749]
[1760752341180,0.2,184.73,184.72,60.10959749]
[1760752343178,0.2,184.73,184.72,60.82959749]
[1760752344074,0.2,184.73,184.72,60.10959749]
[1760752346374,0.2,184.73,184.72,60.82959749]
[1760752346577,0.2,184.73,184.72,88.24959749]
[1760752346783,1e-08,184.74,184.73,0.28432314]
[1760752346983,1e-08,184.74,184.73,6.41762904]
[1760752347484,1e-08,184.74,184.73,61.49172892]
[1760752350770,0.67,184.8,184.75,0.28432314]
[1760752350967,0.2,184.83,184.77,0.28432314]
[1760752351166,0.67,184.79,184.78,5.95302521]
[1760752351470,0.2,184.83,184.79,0.28432314]
[1760752351671,0.67,184.82,184.79,51.98432313]
[1760752351875,0.67,184.81,184.79,51.98432313]
[1760752352186,0.2,184.83,184.8,0.54112554]
[1760752352403,0.87,184.83,184.8,0.54112554]
[1760752352572,0.87,184.83,184.8,16.81231198]
[1760752352975,0.2,184.83,184.8,17.53231198]
[1760752353377,0.2,184.83,184.82,0.28432314]
[1760752353570,0.2,184.83,184.82,0.82539012]
[1760752353891,0.87,184.83,184.82,0.82539012]
[1760752355489,0.87,184.83,184.82,9.41015984]
[1760752357387,0.87,184.83,184.82,61.11015983]
[1760752357688,0.87,184.83,184.82,51.69999999]
[1760752358587,0.87,184.83,184.79,3.17409988]
[1760752358799,3.89409988,184.82,184.78,5.41176568]
[1760752358986,0.72,184.81,184.78,5.41176568]
[1760752359185,0.72,184.8,184.78,5.41176568]
[1760752359485,3.17409988,184.82,184.78,5.41176568]
[1760752359671,0.72,184.79,184.77,5.41211048]
[1760752360080,0.72,184.78,184.77,5.41211048]
[1760752360291,3.89409988,184.78,184.76,14.35661983]
[1760752360478,3.89409988,184.77,184.71,5.41389204]
[1760752360796,3.89409988,184.76,184.72,14.64094297]
[1760752361000,0.72,184.75,184.72,14.64094297]
[1760752361190,0.72,184.74,184.71,5.41389204]
[1760752361379,0.72,184.73,184.71,10.82457772]
[1760752361578,0.72,184.75,184.71,10.82457772]
[1760752361880,0.72,184.74,184.71,10.82457772]
[1760752362987,2.02929699,184.75,184.71,10.82457772]
[1760752363195,0.72,184.73,184.71,10.82457772]
[1760752363376,0.72,184.72,184.71,10.82457772]
[1760752363885,0.72,184.72,184.71,5.41389204]
[1760752364604,0.72,184.72,184.71,4.91389204]
[1760752366200,0.72,184.72,184.71,56.61389203]
[1760752369095,0.72,184.72,184.71,51.69999999]
[1760752369294,2.74929699,184.72,184.71,57.11389203]
[1760752369798,0.72,184.72,184.71,57.11389203]
[1760752370102,2.74929699,184.74,184.71,57.11389203]
[1760752370296,2.02929699,184.74,184.71,57.11389203]
[1760752370498,22.88,184.8,184.71,57.11389203]
[1760752370706,0.72,184.76,184.72,1.49568303]
[1760752370878,2.02929699,184.73,184.72,52.24135988]
[1760752371076,2.74929699,184.73,184.72,51.69999999]
[1760752372802,2.74929699,184.73,184.69,5.41443169]
[1760752372999,2.02929699,184.71,184.69,5.41443169]
[1760752373197,2.02929699,184.71,184.69,57.11443168]
[1760752373588,2.74929699,184.72,184.69,57.11443168]
[1760752374000,0.72,184.72,184.71,10.0]
[1760752374196,2.02929699,184.73,184.71,15.41386362]
[1760752374607,2.74929699,184.73,184.71,15.41386362]
[1760752375111,2.02929699,184.73,184.71,15.41386362]
[1760752375406,2.74929699,184.73,184.71,15.41386362]
[1760752377695,2.02929699,184.73,184.71,10.0]
[1760752377896,25.62929699,184.72,184.71,10.0]
[1760752378510,2.74929699,184.72,184.71,10.0]
[1760752378894,7.1715192,184.72,184.71,10.0]
[1760752379094,2.74929699,184.72,184.71,10.0]
[1760752380816,7.08844027,184.72,184.71,10.0]
[1760752381013,2.74929699,184.72,184.71,10.0]
[1760752381501,31.04289595,184.72,184.62,57.78624248]
[1760752381701,2.02929699,184.65,184.62,6.08624249]
[1760752382018,2.02929699,184.65,184.63,0.67]
[1760752382194,2.02929699,184.65,184.62,5.41624249]
[1760752382401,2.02929699,184.65,184.64,0.67]
[1760752383008,2.02929699,184.65,184.63,6.08598015]
[1760752385418,2.02929699,184.65,184.63,5.41598015]
[1760752385623,2.02929699,184.65,184.64,0.69]
[1760752386417,2.02929699,184.65,184.63,5.41598015]
[1760752386611,2.02929699,184.66,184.63,0.69]
[1760752386918,2.02929699,184.66,184.63,52.38999999]
[1760752388111,2.02929699,184.66,184.64,0.71]
[1760752388626,2.02929699,184.66,184.64,6.12586989]
[1760752389519,2.02929699,184.66,184.64,5.41586989]
[1760752390113,2.02929699,184.66,184.64,6.12586989]
[1760752390930,2.72929699,184.66,184.63,57.11621648]
[1760752391121,2.02929699,184.66,184.63,57.11621648]
[1760752391324,2.02929699,184.66,184.64,0.71]
[1760752391627,2.02929699,184.65,184.64,0.71]
[1760752392012,2.02929699,184.66,184.63,57.11621648]
[1760752392212,2.02929699,184.66,184.63,57.82621648]
[1760752392621,2.02929699,184.64,184.63,51.69999999]
[1760752392817,2.72929699,184.64,184.59,0.71]
[1760752393036,2.02929699,184.62,184.59,52.41]
[1760752393338,2.72929699,184.62,184.59,52.41]
[1760752393922,2.02929699,184.62,184.59,57.82736397]
[1760752394118,2.02929699,184.62,184.6,0.71]
[1760752394433,2.02929699,184.64,184.61,0.71]
[1760752395022,2.02929699,184.64,184.59,71.20263402]
[1760752395224,2.02929699,184.65,184.6,0.99432314]
[1760752395412,2.02929699,184.64,184.61,0.71]
[1760752395612,2.02929699,184.64,184.61,52.41]
[1760752396015,2.02929699,184.64,184.61,57.82678591]
[1760752396816,2.02929699,184.62,184.61,51.7]
[1760752397020,2.72929699,184.62,184.58,0.71]
[1760752397220,2.02929699,184.62,184.59,6.1273638]
[1760752398125,2.02929699,184.63,184.6,0.71]
[1760752398323,2.02929699,184.63,184.6,52.41]
[1760752398527,2.02929699,184.63,184.61,0.71]
[1760752398715,2.02929699,184.63,184.61,52.41]
[1760752399115,2.02929699,184.63,184.61,57.82673458]
[1760752399740,2.02929699,184.63,184.61,57.11673458]
[1760752401127,2.02929699,184.63,184.61,51.7]
[1760752401441,2.02929699,184.62,184.61,51.7]
[1760752401944,2.02929699,184.62,184.6,5.41704892]
[1760752402153,2.02929699,184.62,184.59,5.41737378]
[1760752402331,2.02929699,184.62,184.59,6.12737378]
[1760752402950,2.72929699,184.62,184.59,51.7]
[1760752403322,2.02929699,184.62,184.59,57.82728707]
[1760752403540,2.02929699,184.62,184.59,57.11728707]
[1760752403739,2.02929699,184.62,184.6,0.71]
[1760752404648,834.14,214.29,184.6,0.71]
[1760752404649,0.7,184.66,184.6,0.71]
[1760752404828,2.02929699,184.63,184.6,52.41]
[1760752405037,2.02929699,184.63,184.61,6.12682465]
[1760752405228,2.02929699,184.63,184.62,0.71]
[1760752405740,0.7,184.66,184.62,0.71]
[1760752405936,2.02929699,184.65,184.63,0.71]
[1760752406133,23.58,184.68,184.62,51.7]
[1760752406339,2.02929699,184.65,184.64,0.71]
[1760752406526,2.02929699,184.65,184.64,51.7]
[1760752406721,2.72929699,184.65,184.64,51.7]
[1760752407031,2.02929699,184.65,184.64,51.7]
[1760752407226,2.72929699,184.65,184.64,51.7]
[1760752408344,25.60929699,184.65,184.64,51.7]
[1760752409335,2.72929699,184.65,184.64,51.7]
[1760752409540,25.60929699,184.65,184.64,51.7]
[1760752410544,2.72929699,184.65,184.6,52.41]
[1760752410755,2.02929699,184.62,184.6,51.7]
[1760752411123,2.02929699,184.62,184.6,52.41]
[1760752412846,2.02929699,184.61,184.6,51.7]
[1760752414142,2.72929699,184.61,184.6,51.7]
[1760752414533,2.02929699,184.61,184.6,51.7]
[1760752415643,2.02929699,184.61,184.6,52.41]
[1760752416844,16.29327902,184.74,184.6,34.08881829]
[1760752417039,2.02929699,184.7,184.61,0.99432314]
[1760752417233,2.02929699,184.7,184.62,1.25165312]
[1760752417542,2.72929699,184.72,184.64,0.28432314]
[1760752417731,22.88,184.69,184.65,1.25156512]
[1760752417932,2.72929699,184.72,184.67,5.41506471]
[1760752418148,2.72929699,184.72,184.68,0.71]
[1760752418854,0.67,184.71,184.67,5.41506471]
[1760752419054,24.90929699,184.72,184.68,0.71]
[1760752419249,25.57929699,184.72,184.68,0.71]
[1760752420154,22.88,184.74,184.68,6.12464971]
[1760752420353,22.88,184.74,184.69,28.99577097]
[1760752420354,4.3961544,184.74,184.69,28.99577097]
[1760752420656,0.67,184.82,184.7,0.99432314]
[1760752420953,0.2,184.83,184.71,1.2513892]
[1760752421139,0.2,184.83,184.72,0.71]
[1760752421340,0.2,184.83,184.73,0.54133059]
[1760752421545,0.2,184.83,184.74,0.71]
[1760752421759,0.2,184.83,184.75,0.54127198]
[1760752422171,0.2,184.83,184.76,0.71]
[1760752422346,0.2,184.83,184.78,0.28432314]
[1760752422662,0.2,184.83,184.79,1.25115482]
[1760752422840,0.2,184.83,184.8,0.71]
[1760752423350,0.2,184.83,184.81,0.54109626]
[1760752423753,0.2,184.83,184.82,0.71]
[1760752425142,0.2,184.83,184.82,6.12066984]
[1760752426259,3.83827835,184.89,184.82,6.12066984]
[1760752427542,3.16827835,184.87,184.82,6.12066984]
[1760752427744,3.16827835,184.87,184.83,0.71]
[1760752429366,3.16827835,184.87,184.83,6.12032509]
[1760752429551,3.16827835,184.87,184.84,0.71]
[1760752429744,3.83827835,184.87,184.83,5.41032509]
[1760752430364,3.16827835,184.87,184.83,6.12032509]
[1760752431362,3.16827835,184.85,184.77,0.71]
[1760752431570,3.16827835,184.83,184.77,1.2512134]
[1760752431861,3.16827835,184.83,184.77,6.94767054]
[1760752432361,3.16827835,184.81,184.77,5.69645714]
[1760752432567,3.83827835,184.81,184.77,5.412134]
[1760752433238,3.16827835,184.81,184.77,6.122134]
[1760752433439,3.83827835,184.81,184.77,5.412134]
[1760752433764,3.16827835,184.82,184.77,6.122134]
[1760752433954,3.83827835,184.82,184.77,6.122134]
[1760752434358,0.67,184.81,184.77,5.412134]
[1760752435171,3.16827835,184.82,184.76,5.41241662]
[1760752435377,0.67,184.81,184.76,5.41241662]
[1760752435573,0.67,184.8,184.75,5.41271531]
[1760752435760,3.83827835,184.8,184.75,5.41271531]
[1760752436270,3.16827835,184.8,184.75,5.41271531]
[1760752436452,0.67,184.79,184.75,5.41271531]
[1760752440153,0.67,184.79,184.75,57.11271531]
[1760752441070,3.83827835,184.78,184.75,51.7]
[1760752441565,0.67,184.77,184.75,51.7]
[1760752442266,0.67,184.76,184.75,51.7]
[1760752442451,3.83827835,184.76,184.75,51.7]
[1760752442866,26.71827835,184.76,184.71,51.7]
[1760752443068,3.16827835,184.74,184.71,51.7]
[1760752443267,3.83827835,184.74,184.71,51.7]